bitfinex-derivatives/quotes_SOLF0:USTF0_20241212
["timestamp","ask_amount","ask_price","bid_price","bid_amount"]
[1734015095834,3.34,231.28,231.07,16.75352537]
[1734015096031,16.75352537,231.26,231.06,3.34]
[1734015096734,2.1621,231.17,231.12,2.1626]
[1734015097035,2.1621,231.17,231.06,3.34]
[1734015097436,3.34,231.21,231.07,16.75352537]
[1734015098330,3.34,231.21,231.06,3.34]
[1734015098532,2.1624,231.15,231.06,3.34]
[1734015098837,1.3448,231.2,231.04,1.4594]
[1734015099136,2.7704,231.2,231.04,1.4594]
[1734015099536,1.3448,231.2,231.04,1.4594]
[1734015099737,3.5067,231.2,231.14,2.1623]
[1734015100442,1.3448,231.2,231.14,2.1623]
[1734015100740,2.1619,231.19,231.14,2.1623]
[1734015101330,1.3448,231.2,231.07,3.2]
[1734015101733,2.162,231.19,231.13,2.1624]
[1734015101934,3.34,231.21,231.07,3.2]
[1734015102137,3.34,231.21,231.07,19.95352537]
[1734015102340,5.5017,231.21,231.16,2.1622]
[1734015102542,2.7545,231.26,231.07,19.95352537]
[1734015102736,2.7545,231.26,231.11,16.75352537]
[1734015102737,3.2,231.23,231.11,16.75352537]
[1734015102942,1.3289,231.26,231.11,16.75352537]
[1734015103237,1.3289,231.26,231.07,3.2]
[1734015103238,1.4588,231.33,231.15,16.75352537]
[1734015103443,3.2,231.33,231.16,7.3761]
[1734015103941,5.17268817,231.35,231.16,7.3761]
[1734015104139,2.7788,231.38,231.19,16.75352537]
[1734015104339,1.4521,231.38,231.23,16.75352537]
[1734015104544,1.4521,231.38,231.28,2.1611]
[1734015104741,1.4588,231.43,231.27,16.75352537]
[1734015104941,1.4588,231.43,231.28,1.3679]
[1734015105137,4.6521,231.44,231.28,4.1337]
[1734015105138,1.4521,231.44,231.28,4.1337]
[1734015105336,3.2,231.51,231.31,16.75352537]
[1734015105541,2.87358924,231.5,231.32,3.2]
[1734015105737,2.1593,231.47,231.4,2.1599]
[1734015106340,2.15982721,231.5,231.43,2.1596]
[1734015106739,2.15982721,231.5,231.39,3.2]
[1734015107146,4.31892721,231.5,231.42,2.1597]
[1734015107347,2.15982721,231.5,231.39,3.2]
[1734015107549,2.15982721,231.5,231.36,5.12537601]
[1734015107747,2.1592,231.48,231.41,2.1598]
[1734015107952,2.15982721,231.5,231.38,16.75352537]
[1734015108150,2.15982721,231.5,231.39,1.3615]
[1734015108341,2.15982721,231.5,231.4,3.2]
[1734015109146,2.15982721,231.5,231.41,1.4511]
[1734015109349,2.15982721,231.5,231.46,2.1594]
[1734015110447,2.15982721,231.5,231.48,2.1592]
[1734015110951,2.15982721,231.5,231.48,5.3592]
[1734015111146,2.1581,231.6,231.48,3.2]
[1734015111357,5.14546134,231.62,231.53,2.1587]
[1734015111658,2.1579,231.62,231.48,3.2]
[1734015111957,3.2,231.65,231.52,2.1588]
[1734015112350,3.2,231.65,231.48,3.2]
[1734015112854,2.1581,231.61,231.53,2.1587]
[1734015113051,5.12472605,231.64,231.48,3.2]
[1734015114057,4.3208,231.68,231.5,16.75352537]
[1734015114254,2.8849,231.68,231.51,1.3677]
[1734015114653,2.1575,231.67,231.6,2.1581]
[1734015114855,8.39365504,231.71,231.57,3.2]
[1734015115056,8.39365504,231.71,231.58,3.2]
[1734015116152,8.39365504,231.71,231.55,1.3664]
[1734015116858,2.1577,231.64,231.57,2.1583]
[1734015117555,3.2,231.7,231.55,1.3664]
[1734015117956,2.1575,231.67,231.6,2.1581]
[1734015118255,5.19365504,231.71,231.55,1.3664]
[1734015118757,2.1575,231.67,231.6,2.158]
[1734015118954,2.1575,231.67,231.55,2.7297]
[1734015119362,2.1576,231.66,231.59,2.1582]
[1734015119857,21.94718041,231.71,231.55,1.3664]
[1734015120059,1.4093,231.7,231.55,1.3664]
[1734015120451,1.4093,231.7,231.57,2.1584]
[1734015120755,1.4093,231.7,231.55,1.3664]
[1734015120961,2.1577,231.64,231.58,2.1583]
[1734015121152,1.4093,231.7,231.55,1.3664]
[1734015122061,1.4093,231.7,231.56,1.3456]
[1734015122556,1.3491,231.81,231.62,16.75352537]
[1734015122758,3.91279798,231.8,231.63,3.2]
[1734015122968,3.2,231.8,231.63,4.524]
[1734015123258,1.3491,231.81,231.66,16.75352537]
[1734015123452,1.3491,231.81,231.67,1.4249]
[1734015123657,2.1562,231.8,231.71,2.157]
[1734015123862,2.1562,231.8,231.7,3.2]
[1734015124157,1.3491,231.81,231.7,3.2]
[1734015124158,2.1566,231.76,231.7,3.2]
[1734015124461,1.3491,231.81,231.7,3.2]
[1734015124861,2.1564,231.79,231.7,3.2]
[1734015125253,1.3491,231.81,231.7,3.2]
[1734015125458,1.3491,231.81,231.67,1.4249]
[1734015126359,1.3491,231.81,231.68,3.2]
[1734015126658,2.1562,231.8,231.68,3.2]
[1734015126961,1.3491,231.81,231.68,4.6086]
[1734015127756,2.1563,231.79,231.68,4.6086]
[1734015127959,1.3491,231.81,231.68,4.6086]
[1734015128365,1.3491,231.81,231.67,1.4249]
[1734015128865,2.1566,231.76,231.71,2.1571]
[1734015129066,1.3491,231.81,231.67,1.4249]
[1734015129459,59.6502124,231.83,231.67,1.4249]
[1734015130162,4.5209,231.87,231.67,1.4249]
[1734015130362,4.5209,231.87,231.7,16.75352537]
[1734015130665,2.156,231.83,231.7,16.75352537]
[1734015131163,2.1558,231.85,231.79,2.1563]
[1734015131369,1.3209,231.87,231.74,19.95352537]
[1734015131558,1.4339,231.92,231.75,1.3624]
[1734015131963,1.4339,231.92,231.71,1.3914]
[1734015132262,16.75352537,231.9,231.71,2.7522]
[1734015132460,2.1558,231.85,231.73,2.1568]
[1734015132763,3.2,231.85,231.71,2.7522]
[1734015133161,2.1561,231.82,231.77,2.1565]
[1734015133365,3.2,231.91,231.73,16.75352537]
[1734015133567,2.1558,231.85,231.8,2.1562]
[1734015133775,2.1558,231.85,231.73,16.75352537]
[1734015134569,2.1561,231.82,231.73,16.75352537]
[1734015134866,3.2,231.91,231.77,2.1565]
[1734015135072,2.1561,231.82,231.77,2.1565]
[1734015135469,19.95352537,231.91,231.74,2.1568]
[1734015135667,3.2,231.91,231.74,2.1568]
[1734015136277,2.1563,231.8,231.75,2.1567]
[1734015136875,3.2,231.83,231.71,2.157]
[1734015137074,1.3349,231.82,231.71,2.157]
[1734015137580,1.3349,231.82,231.68,3.2]
[1734015137984,1.3349,231.82,231.68,19.95352537]
[1734015138176,3.2,231.83,231.68,19.95352537]
[1734015139580,1.3349,231.9,231.72,16.75352537]
[1734015140084,3.2,231.93,231.8,16.75352537]
[1734015140285,2.1552,231.91,231.86,2.1556]
[1734015141477,2.1552,231.91,231.81,1.458]
[1734015141478,2.1552,231.91,231.84,2.1558]
[1734015141878,5.08518619,231.94,231.81,1.458]
[1734015142280,5.08518619,231.94,231.73,19.95352537]
[1734015142482,21.83871156,231.94,231.78,2.1564]
[1734015142685,21.83871156,231.94,231.74,3.2]
[1734015143588,2.1555,231.88,231.83,2.1559]
[1734015143790,3.2,231.91,231.74,3.2]
[1734015143992,3.2,231.91,231.75,1.4542]
[1734015144587,5.08518619,231.94,231.75,1.4542]
[1734015144781,3.2,231.93,231.75,1.4542]
[1734015145088,3.2,231.93,231.8,2.1562]
[1734015146086,3.2,231.93,231.73,16.75352537]
[1734015146690,2.1559,231.84,231.73,16.75352537]
[1734015146888,3.2,231.93,231.73,16.75352537]
[1734015147193,3.2,231.93,231.77,16.75352537]
[1734015147491,2.1555,231.89,231.84,2.1558]
[1734015147687,5.08518619,231.94,231.79,3.2]
[1734015147887,2.1553,231.91,231.79,3.2]
[1734015148187,3.2,231.95,231.79,3.2]
[1734015148590,2.1552,231.91,231.79,3.2]
[1734015149387,2.1552,231.91,231.86,2.1556]
[1734015149986,1.4152,231.96,231.81,16.75352537]
[1734015150198,1.4152,231.96,231.82,1.3208]
[1734015150796,1.4152,231.96,231.9,2.1552]
[1734015151091,1.4152,231.96,231.82,1.3208]
[1734015151691,2.1551,231.92,231.87,2.1556]
[1734015152087,3.57,231.96,231.88,2.1555]
[1734015152297,3.57,231.96,231.85,5.2896982]
[1734015153000,3.57,231.96,231.86,1.3985]
[1734015153001,2.1549,231.95,231.86,1.3985]
[1734015154394,2.1545,231.99,231.87,3.18]
[1734015154589,1.3821,232.02,231.87,3.18]
[1734015154789,3.18,232.03,231.89,16.75352537]
[1734015155093,5.3342,232.03,231.97,2.1546]
[1734015155289,1.315,232.05,231.89,16.75352537]
[1734015155893,3.18,232.04,231.87,3.18]
[1734015156993,3.18,232.04,231.81,16.75352537]
[1734015156994,16.75352537,232.03,231.81,16.75352537]
[1734015157192,16.75352537,231.99,231.79,1.3846]
[1734015157393,2.7439,231.98,231.79,1.3846]
[1734015157595,3.18,231.97,231.8,5.11404808]
[1734015157791,2.1556,231.88,231.8,5.11404808]
[1734015157990,3.18,231.97,231.83,2.1559]
[1734015158393,3.18,231.97,231.8,5.11404808]
[1734015158894,3.18,231.97,231.79,1.3846]
[1734015158895,16.75352537,231.95,231.79,1.3846]
[1734015159089,16.75352537,231.95,231.74,4.5176]
[1734015159293,1.3503,231.94,231.74,4.5176]
[1734015159597,1.3503,231.94,231.74,1.3376]
[1734015159598,2.1561,231.82,231.74,1.3376]
[1734015159793,3.18,231.86,231.75,5.27398477]
[1734015160498,2.1558,231.85,231.75,5.27398477]
[1734015161096,3.18,231.86,231.75,5.27398477]
[1734015161696,3.18,231.9,231.78,2.1564]
[1734015161894,3.18,231.9,231.74,1.3376]
[1734015162301,3.18,231.9,231.74,6.54946481]
[1734015162706,2.1563,231.79,231.74,2.1567]
[1734015162899,3.18,231.82,231.72,1.35]
[1734015163198,3.18,231.82,231.74,2.1567]
[1734015163199,2.1563,231.79,231.74,2.1567]
[1734015163401,3.18,231.82,231.72,1.35]
[1734015163796,2.1562,231.81,231.75,2.1566]
[1734015164103,3.18,231.82,231.72,1.35]
[1734015164296,2.1561,231.81,231.75,2.1567]
[1734015164499,2.1561,231.81,231.72,1.35]
[1734015164898,3.18,231.82,231.72,1.35]
[1734015165694,2.1561,231.81,231.75,2.1567]
[1734015165897,2.1561,231.81,231.72,1.35]
[1734015166104,2.156,231.83,231.77,2.1565]
[1734015166404,2.156,231.83,231.72,1.35]
[1734015166599,3.18,231.86,231.73,16.75352537]
[1734015166600,5.3358,231.86,231.73,16.75352537]
[1734015166800,3.18,231.86,231.73,16.75352537]
[1734015167303,3.18,231.86,231.74,1.4054]
[1734015167907,3.18,231.86,231.72,1.35]
[1734015168403,2.1562,231.8,231.75,2.1567]
[1734015169006,3.18,231.86,231.72,1.35]
[1734015169803,1.376,231.88,231.72,1.35]
[1734015170406,2.156,231.83,231.77,2.1564]
[1734015170605,1.376,231.88,231.72,1.35]
[1734015171104,16.75352537,231.87,231.61,4.3159]
[1734015171410,16.75352537,231.83,231.66,5.06987455]
[1734015171603,2.1566,231.76,231.66,5.06987455]
[1734015171808,4.5616,231.82,231.66,5.06987455]
[1734015172209,2.1565,231.77,231.66,5.06987455]
[1734015172600,4.5616,231.82,231.66,5.06987455]
[1734015172800,4.5616,231.82,231.67,3.18]
[1734015173604,4.5616,231.82,231.68,2.15814917]
[1734015173801,1.3816,231.82,231.68,2.15814917]
[1734015174004,1.3816,231.82,231.74,2.1568]
[1734015174201,1.3816,231.82,231.68,2.15814917]
[1734015174403,2.1569,231.74,231.68,2.15814917]
[1734015174609,1.3816,231.82,231.68,2.15814917]
[1734015175110,2.1568,231.75,231.7,2.1571]
[1734015175906,1.3816,231.82,231.7,2.1571]
[1734015176110,2.1568,231.74,231.68,4.31544917]
[1734015176308,2.1568,231.74,231.68,2.15814917]
[1734015176907,3.18,231.77,231.68,2.15814917]
[1734015177612,1.3816,231.82,231.68,2.15814917]
[1734015177808,3.18,231.81,231.68,2.15814917]
[1734015178205,2.1564,231.79,231.75,2.1567]
[1734015178410,1.3816,231.82,231.68,2.15814917]
[1734015178411,4.5616,231.82,231.68,2.15814917]
[1734015178815,4.5616,231.82,231.76,2.1566]
[1734015178816,2.1563,231.79,231.76,2.1566]
[1734015179117,4.5616,231.82,231.76,2.1566]
[1734015179305,4.5616,231.82,231.77,2.1564]
[1734015179306,6.7177,231.82,231.77,2.1564]
[1734015179711,1.0,231.86,231.69,19.93352537]
[1734015179913,1.0,231.86,231.79,2.1562]
[1734015180214,4.18,231.86,231.69,19.93352537]
[1734015180405,2.1561,231.81,231.69,19.93352537]
[1734015180608,4.18,231.86,231.69,19.93352537]
[1734015181011,2.1562,231.8,231.76,2.1566]
[1734015182011,2.1561,231.81,231.77,2.1565]
[1734015182211,1.0,231.86,231.69,19.93352537]
[1734015182415,3.18,231.85,231.69,19.93352537]
[1734015182613,2.1559,231.84,231.73,2.1568]
[1734015182912,3.18,231.89,231.74,1.3713]
[1734015183112,2.1556,231.87,231.82,2.156]
[1734015183312,3.18,231.89,231.75,1.3643]
[1734015183313,1.3661,231.9,231.75,1.3643]
[1734015183512,4.5461,231.9,231.75,1.3643]
[1734015184017,2.1556,231.87,231.83,2.1559]
[1734015184319,5.23369488,231.98,231.78,16.75352537]
[1734015184615,3.18,232.0,231.83,16.75352537]
[1734015184819,3.18,232.0,231.84,3.18]
[1734015185018,3.18,232.0,231.88,2.1554]
[1734015185418,3.18,232.0,231.84,3.18]
[1734015185419,5.09703403,231.99,231.84,3.18]
[1734015185809,2.1549,231.95,231.88,2.1554]
[1734015186118,5.09703403,231.99,231.84,3.18]
[1734015186315,5.09703403,231.99,231.85,1.3278]
[1734015186521,2.1549,231.95,231.89,2.1553]
[1734015186814,2.1549,231.95,231.85,1.3278]
[1734015186815,3.18,232.0,231.85,1.3278]
[1734015187008,2.1547,231.97,231.91,2.1552]
[1734015188021,2.1547,231.96,231.91,2.1552]
[1734015188217,5.15654255,232.0,231.91,2.1552]
[1734015188816,5.15654255,232.0,231.85,2.6645]
[1734015189024,1.3475,232.02,231.85,2.6645]
[1734015189918,2.1544,232.0,231.95,2.1548]
[1734015190120,1.3475,232.02,231.85,2.6645]
[1734015190420,2.1543,232.01,231.9,2.1553]
[1734015190613,1.3475,232.02,231.85,2.6645]
[1734015192221,3.18,232.03,231.85,2.6645]
[1734015193018,3.18,232.03,231.98,2.1545]
[1734015193330,3.18,232.03,231.85,2.6645]
[1734015193626,2.1539,232.05,232.0,2.1544]
[1734015195120,2.154,232.04,231.99,2.1544]
[1734015195328,1.3439,232.06,231.92,3.18]
[1734015195725,3.4978,232.06,232.0,2.1543]
[1734015195921,1.3439,232.06,232.0,2.1543]
[1734015196623,2.1539,232.05,232.0,2.1543]
[1734015196828,3.18,232.07,231.94,5.25695985]
[1734015197025,1.4478,232.1,231.94,22.01048522]
[1734015197226,4.6278,232.1,231.95,1.414]
[1734015197627,2.1537,232.07,232.02,2.1541]
[1734015197932,4.6278,232.1,231.96,1.4045]
[1734015198529,2.1537,232.08,231.96,1.4045]
[1734015198725,1.4478,232.1,231.96,1.4045]
[1734015198930,16.75352537,232.16,232.02,2.1541]
[1734015199235,5.1851287,232.11,231.96,1.4045]
[1734015199633,2.1537,232.07,231.96,1.4045]
[1734015199925,5.1851287,232.11,231.96,1.4045]
[1734015200127,2.1537,232.08,232.02,2.1541]
[1734015200325,5.1851287,232.11,231.96,1.4045]
[1734015200727,2.1536,232.08,231.96,1.4045]
[1734015201030,2.1536,232.08,232.03,2.154]
[1734015203231,2.1536,232.08,232.04,2.1539]
[1734015203533,2.1536,232.08,231.98,10.39967929]
[1734015204127,2.1536,232.08,232.03,2.154]
[1734015204327,2.1535,232.1,231.99,3.18]
[1734015204530,3.18,232.16,232.02,10.39967929]
[1734015204835,3.18,232.18,232.06,10.39967929]
[1734015205030,0.71134243,232.17,232.06,10.39967929]
[1734015205231,3.18,232.18,232.06,10.39967929]
[1734015205430,2.1528,232.17,232.07,1.3856]
[1734015205626,1.4152,232.2,232.07,1.3856]
[1734015206033,2.1528,232.17,232.07,1.3856]
[1734015206230,2.1528,232.17,232.12,2.1532]
[1734015206433,2.1528,232.17,232.07,1.3856]
[1734015206732,2.1528,232.17,232.11,2.1533]
[1734015206931,2.1528,232.17,232.07,1.3856]
[1734015207131,2.1529,232.16,232.07,1.3856]
[1734015207337,1.4152,232.2,232.07,1.3856]
[1734015207637,2.1529,232.16,232.07,1.3856]
[1734015207932,2.1529,232.16,232.11,2.1533]
[1734015208436,2.1531,232.15,232.07,1.3856]
[1734015209033,2.1531,232.14,232.09,2.1534]
[1734015209235,3.18,232.17,232.0,16.6271195]
[1734015209429,3.18,232.17,232.03,5.29117602]
[1734015210534,19.8071195,232.17,231.97,3.18]
[1734015210730,0.7113741,232.16,231.97,3.18]
[1734015210935,16.6271195,232.13,231.94,4.0953]
[1734015211638,0.71152088,232.12,231.94,4.0953]
[1734015211834,16.6271195,232.13,231.96,2.1547]
[1734015212037,1.441,232.11,231.94,4.0953]
[1734015212240,2.1539,232.06,231.97,2.1546]
[1734015212436,3.18,232.1,231.94,9.19686051]
[1734015212637,1.3719,232.09,231.94,9.19686051]
[1734015212933,2.1545,232.0,231.97,1.06741]
[1734015213140,19.4038195,232.09,231.98,2.15535822]
[1734015213435,2.1545,231.99,231.97,1.06741]
[1734015213641,3.18,231.98,231.84,5.06690528]
[1734015213839,2.1554,231.89,231.78,22.5635195]
[1734015214337,3.18,231.89,231.79,2.15712498]
[1734015215137,3.18,231.89,231.79,7.23752093]
[1734015215337,1.4084,231.96,231.79,7.23752093]
[1734015215534,3.18,231.95,231.79,7.23752093]
[1734015216135,2.1552,231.92,231.79,7.23752093]
[1734015216336,3.18,231.94,231.79,7.23752093]
[1734015216536,5.335,231.94,231.86,2.1556]
[1734015216840,3.18,231.94,231.86,2.1556]
[1734015217031,3.18,231.94,231.79,7.23752093]
[1734015217232,3.18,231.94,231.79,9.39382093]
[1734015217439,3.18,231.94,231.79,2.15712498]
[1734015217638,16.6271195,231.93,231.79,2.15712498]
[1734015217839,0.71216755,231.92,231.79,2.15712498]
[1734015218041,1.4084,231.96,231.79,2.15712498]
[1734015218239,3.8921057,231.95,231.83,2.1559]
[1734015218540,3.18,231.95,231.79,2.15712498]
[1734015218741,2.1557,231.86,231.79,2.15712498]
[1734015218938,3.18,231.88,231.79,2.15712498]
[1734015219943,3.18,231.88,231.8,1.3478]
[1734015220846,3.18,231.93,231.8,19.3749195]
[1734015221145,4.5884,231.96,231.8,19.3749195]
[1734015221344,2.1548,231.95,231.81,3.18]
[1734015222241,3.18,231.96,231.81,3.18]
[1734015222441,3.18,231.96,231.85,2.1557]
[1734015222739,1.421,232.04,231.81,3.18]
[1734015222940,3.18,231.98,231.81,3.18]
[1734015223839,3.18,231.98,231.8,2.7478]
[1734015224042,16.6271195,231.96,231.8,1.3478]
[1734015224237,16.6271195,231.96,231.79,2.15712498]
[1734015224637,1.0,231.97,231.79,2.15712498]
[1734015224836,2.1551,231.92,231.84,2.1558]
[1734015225039,1.0,231.97,231.84,2.1558]
[1734015225442,2.1553,231.9,231.84,2.1558]
[1734015225843,2.1553,231.9,231.85,2.1557]
[1734015226741,2.1553,231.9,231.79,2.15712498]
[1734015226943,2.1553,231.9,231.76,16.6271195]
[1734015227140,2.1556,231.87,231.76,16.6271195]
[1734015227342,3.18,231.93,231.75,1.4233]
[1734015227646,21.2437195,231.92,231.75,1.4233]
[1734015228144,22.2437195,231.92,231.75,1.4233]
[1734015228543,22.2437195,231.92,231.77,2.1564]
[1734015228739,22.2437195,231.92,231.75,1.4233]
[1734015229246,22.2437195,231.92,231.76,2.1565]
[1734015229445,22.2437195,231.92,231.75,1.4233]
[1734015229643,2.1563,231.8,231.75,2.1566]
[1734015230039,2.1563,231.8,231.7,1.3977]
[1734015230040,2.1562,231.8,231.7,3.5548]
[1734015230240,3.18,231.84,231.7,3.5548]
[1734015230241,1.3612,231.83,231.7,2.1571]
[1734015230549,2.1565,231.78,231.67,2.1574]
[1734015230743,3.18,231.77,231.65,1.3612]
[1734015231048,3.18,231.77,231.59,2.7808]
[1734015231243,3.18,231.77,231.63,2.1578]
[1734015231244,2.1573,231.69,231.63,2.1578]
[1734015232143,3.18,231.7,231.48,3.18]
[1734015232445,3.18,231.7,231.52,1.4553]
[1734015232845,3.18,231.7,231.52,18.0824195]
[1734015233048,3.18,231.7,231.56,16.6271195]
[1734015233350,2.1573,231.69,231.56,16.6271195]
[1734015233946,2.1573,231.69,231.59,2.1581]
[1734015234145,2.1573,231.69,231.56,19.8071195]
[1734015234645,2.1573,231.69,231.63,2.1578]
[1734015235444,3.18,231.7,231.56,19.8071195]
[1734015235842,3.18,231.74,231.56,19.8071195]
[1734015236051,3.18,231.74,231.68,2.1573]
[1734015236550,2.1569,231.73,231.66,2.1575]
[1734015236857,3.18,231.74,231.62,2.6942]
[1734015237247,2.1572,231.7,231.64,2.1577]
[1734015237446,3.18,231.74,231.62,1.3325]
[1734015238850,2.1572,231.7,231.63,2.1578]
[1734015239445,3.18,231.74,231.62,1.3325]
[1734015240352,3.18,231.73,231.57,17.9888195]
[1734015241748,2.1571,231.71,231.65,2.1576]
[1734015241948,2.1571,231.71,231.57,17.9888195]
[1734015242358,2.1571,231.71,231.65,2.1575]
[1734015242551,3.18,231.73,231.57,17.9888195]
[1734015242747,4.096,231.79,231.61,16.6271195]
[1734015242946,2.7723,231.79,231.61,16.6271195]
[1734015243253,2.1565,231.77,231.61,16.6271195]
[1734015244647,8.00773683,231.79,231.61,16.6271195]
[1734015245148,8.00773683,231.79,231.57,1.3617]
[1734015246454,8.00773683,231.79,231.62,5.1615144]
[1734015246655,16.6271195,231.76,231.57,1.3617]
[1734015246851,16.6271195,231.76,231.64,2.1577]
[1734015247048,16.6271195,231.76,231.57,1.3617]
[1734015247450,2.1575,231.67,231.57,1.3617]
[1734015247759,3.18,231.67,231.58,5.17224637]
[1734015248250,1.0,231.78,231.6,16.6271195]
[1734015248453,3.18,231.77,231.6,19.8071195]
[1734015248758,3.18,231.76,231.6,19.8071195]
[1734015248951,2.1567,231.75,231.69,2.1572]
[1734015249155,3.18,231.76,231.6,19.8071195]
[1734015249353,1.0,231.78,231.6,19.8071195]
[1734015249555,2.1567,231.75,231.69,2.1572]
[1734015249750,3.18,231.77,231.6,19.8071195]
[1734015250050,2.1568,231.75,231.69,2.1572]
[1734015250256,3.18,231.77,231.69,2.1572]
[1734015250457,3.18,231.77,231.6,19.8071195]
[1734015250652,1.0,231.78,231.6,19.8071195]
[1734015250859,2.1567,231.76,231.7,2.1572]
[1734015251048,3.18,231.77,231.7,2.1572]
[1734015251455,2.1567,231.75,231.71,2.1571]
[1734015251650,2.1567,231.75,231.6,19.8071195]
[1734015251651,1.0,231.78,231.6,19.8071195]
[1734015251857,3.18,231.82,231.64,16.6271195]
[1734015252051,3.18,231.82,231.6,3.18]
[1734015252052,19.3488195,231.88,231.68,16.6271195]
[1734015252253,3.18,231.87,231.68,19.8071195]
[1734015252450,2.1561,231.82,231.69,1.3312]
[1734015253361,2.156,231.83,231.69,1.3312]
[1734015253554,5.1948835,231.85,231.69,1.3312]
[1734015254156,2.7217,231.88,231.69,1.3312]
[1734015254464,3.18,231.87,231.69,1.3312]
[1734015254658,5.09317123,231.86,231.71,5.25624797]
[1734015255162,5.9017,231.88,231.71,5.25624797]
[1734015255360,3.51335,231.89,231.72,16.6271195]
[1734015255958,5.66875,231.89,231.83,2.1559]
[1734015256458,3.51335,231.89,231.76,3.18]
[1734015256653,3.51335,231.89,231.81,2.1561]
[1734015257259,3.51335,231.89,231.78,2.1564]
[1734015257453,3.51335,231.89,231.76,3.18]
[1734015257454,3.51335,231.89,231.71,8.43624797]
[1734015257651,2.1559,231.85,231.71,8.43624797]
[1734015257851,2.1559,231.85,231.79,2.1563]
[1734015258659,2.1559,231.85,231.71,8.43624797]
[1734015258861,2.1559,231.85,231.8,2.1562]
[1734015259355,2.1561,231.81,231.71,5.25624797]
[1734015259656,16.6271195,231.87,231.71,5.25624797]
[1734015260762,2.1561,231.81,231.76,2.1565]
[1734015261265,2.1561,231.81,231.77,2.1565]
[1734015261455,2.1561,231.81,231.71,5.25624797]
[1734015261456,1.34,231.88,231.71,5.25624797]
[1734015261863,1.34,231.88,231.8,2.1562]
[1734015262061,2.1558,231.85,231.8,2.1562]
[1734015262463,1.34,231.88,231.71,5.25624797]
[1734015262865,3.18,231.87,231.71,5.25624797]
[1734015263262,2.156,231.82,231.77,2.1565]
[1734015263664,2.156,231.82,231.71,5.25624797]
[1734015263866,3.18,231.87,231.71,5.25624797]
[1734015264666,1.34,231.88,231.71,5.25624797]
[1734015264959,2.156,231.83,231.78,2.1564]
[1734015265162,2.156,231.83,231.71,5.25624797]
[1734015265362,2.156,231.83,231.74,2.1567]
[1734015265563,2.1561,231.82,231.71,5.25624797]
[1734015266365,2.1561,231.82,231.77,2.1564]
[1734015267062,2.1561,231.82,231.78,2.1564]
[1734015267567,2.1558,231.85,231.71,5.25624797]
[1734015268161,2.1559,231.84,231.79,2.1563]
[1734015269870,3.18,231.87,231.71,5.25624797]
[1734015270072,2.156,231.83,231.71,5.25624797]
[1734015270371,1.4207,231.9,231.71,21.88336747]
[1734015270559,8.28582022,231.91,231.75,16.6271195]
[1734015270870,8.28582022,231.91,231.76,2.8213]
[1734015271262,2.1555,231.88,231.76,2.8213]
[1734015271566,3.18,231.92,231.76,2.8213]
[1734015271767,3.18,231.93,231.76,2.8213]
[1734015271965,5.23508792,231.92,231.76,2.8213]
[1734015273470,0.24853,231.94,231.79,16.6271195]
[1734015273671,0.24853,231.94,231.8,1.3971]
[1734015274263,0.24853,231.94,231.9,2.1552]
[1734015274669,0.24853,231.94,231.82,3.18]
[1734015274868,0.24853,231.94,231.93,2.155]
[1734015275565,1.328,232.08,231.99,2.1544]
[1734015275773,1.328,232.08,231.87,16.6271195]
[1734015275774,0.71166518,232.07,231.9,3.18]
[1734015275970,1.328,232.14,231.91,16.6271195]
[1734015276171,3.89160984,232.09,232.01,2.1542]